bitfinex-derivatives/quotes_ETHF0:USTF0_20251009
["timestamp","ask_amount","ask_price","bid_price","bid_amount"]
[1760017085629,3.2078,4385.4,4385.2,0.4103]
[1760017085820,3.2078,4385.9,4385.2,0.5886]
[1760017086027,0.41031,4385.2,4385.0,40.80192879]
[1760017086325,0.5915,4385.1,4385.0,40.80192879]
[1760017086534,0.41031,4385.2,4385.0,40.80192879]
[1760017086829,3.2078,4385.4,4385.1,0.5886]
[1760017087027,3.61808,4385.4,4385.1,0.5886]
[1760017087229,0.4103,4385.3,4385.1,0.99891]
[1760017087627,1.00181,4385.1,4385.0,40.80192879]
[1760017088533,3.2078,4385.4,4385.0,40.80192879]
[1760017089023,0.4103,4385.2,4385.1,0.233]
[1760017089427,0.4103,4385.3,4385.2,0.9989]
[1760017089728,3.2078,4385.4,4385.3,0.5886]
[1760017089930,1.02543,4386.7,4385.9,0.5886]
[1760017089931,3.2078,4386.0,4385.9,0.5886]
[1760017090328,1.25849,4386.4,4385.9,0.5886]
[1760017090329,0.233,4386.4,4385.9,0.5886]
[1760017090533,0.41018,4386.6,4386.3,0.4102]
[1760017090733,0.41019,4386.4,4386.3,0.5886]
[1760017090924,0.41018,4386.6,4386.4,0.5886]
[1760017091130,0.5915,4386.4,4386.0,40.8]
[1760017091329,0.41022,4386.1,4386.0,40.8]
[1760017091529,0.41022,4386.1,4386.0,41.6216]
[1760017091926,0.4102,4386.3,4386.1,0.5886]
[1760017092134,0.1823,4386.8,4386.0,41.6216]
[1760017092335,0.1823,4386.8,4386.2,0.4102]
[1760017092831,0.1823,4386.8,4386.0,44.8294]
[1760017092832,0.7366,4386.8,4386.3,0.8304]
[1760017093032,0.41019,4386.4,4386.3,0.8304]
[1760017093231,0.41022,4386.1,4386.0,44.0078]
[1760017093431,0.41027,4385.5,4385.4,3.2078]
[1760017093737,1.20197,4385.5,4385.4,3.2078]
[1760017093938,0.96461,4385.1,4385.0,0.00192879]
[1760017094333,0.4104,4384.2,4384.1,3.2078]
[1760017094632,0.41044,4383.8,4383.7,0.233]
[1760017095037,0.41044,4383.8,4383.7,40.8]
[1760017095235,0.5543,4383.8,4383.7,40.8]
[1760017095434,0.55616427,4383.8,4383.7,40.8028592]
[1760017095635,0.00186427,4383.8,4383.7,40.8028592]
[1760017095840,0.00186427,4383.8,4383.7,41.6332592]
[1760017097738,0.41229427,4383.8,4383.7,40.8028592]
[1760017097934,0.41229427,4383.8,4383.7,41.0358592]
[1760017098138,0.96659427,4383.8,4383.7,40.8028592]
[1760017099236,0.00186427,4383.8,4383.7,41.4002592]
[1760017099443,0.00186427,4383.8,4383.7,41.6332592]
[1760017100038,0.55616427,4383.8,4383.7,41.0358592]
[1760017100341,0.00186427,4383.8,4383.7,41.0358592]
[1760017100941,0.55616427,4383.8,4383.7,40.8028592]
[1760017101639,0.00186427,4383.8,4383.7,41.4002592]
[1760017101941,0.00186427,4383.8,4383.7,41.6332592]
[1760017102142,0.00186427,4383.8,4383.7,41.0358592]
[1760017102338,0.55616427,4383.8,4383.7,40.8028592]
[1760017103247,5.55616427,4383.8,4383.7,0.0028592]
[1760017104541,0.00186427,4383.8,4383.7,0.0028592]
[1760017105242,0.55616427,4383.8,4383.7,0.0028592]
[1760017105942,0.64343,4383.9,4383.8,4.44383573]
[1760017107043,0.64540132,4383.9,4383.8,4.44383573]
[1760017107739,1.19970132,4383.9,4383.8,4.44383573]
[1760017108941,0.41240132,4383.9,4383.8,5.04123573]
[1760017109742,0.00197132,4383.9,4383.8,5.27423573]
[1760017109944,3.2078,4384.7,4384.5,0.41036]
[1760017110246,3.2078,4384.7,4384.6,0.5974]
[1760017110541,3.2078,4384.7,4384.6,41.3974]
[1760017110746,3.6181,4385.2,4385.1,0.5974]
[1760017111146,3.20966983,4385.2,4385.1,0.5974]
[1760017111351,0.00186983,4385.2,4385.1,0.61634793]
[1760017111942,0.41019,4386.4,4386.0,0.2314]
[1760017112146,0.4102,4386.3,4386.2,0.5974]
[1760017112449,0.4102,4386.3,4385.6,0.5974]
[1760017112450,0.3782877,4385.7,4385.6,0.5974]
[1760017112940,0.00199587,4385.7,4385.6,1.00766]
[1760017114042,0.00199587,4385.7,4385.6,0.5974]
[1760017114745,0.1823,4386.5,4386.1,0.5974]
[1760017114941,0.41027,4385.6,4385.1,0.5974]
[1760017115136,0.5543,4386.0,4384.3,1.02597]
[1760017115137,0.41036,4384.6,4384.5,1.63110871]
[1760017115337,0.41042,4383.9,4383.4,1.63110871]
[1760017115542,0.41042,4383.9,4383.8,5.04123573]
[1760017115737,3.2078,4384.6,4383.9,0.5974]
[1760017115944,3.2078,4384.6,4384.5,0.2314]
[1760017116144,1.25972,4385.4,4384.6,0.5974]
[1760017116449,0.00238657,4385.6,4384.8,0.5974]
[1760017116640,1.26206657,4385.6,4384.8,0.5974]
[1760017116844,0.23638657,4385.6,4384.8,0.5974]
[1760017117041,0.41032,4385.1,4384.8,0.5974]
[1760017117245,0.41032,4385.0,4384.8,0.41033]
[1760017117442,0.41031,4385.2,4384.9,0.41033]
[1760017117648,0.41031,4385.2,4385.1,0.5974]
[1760017117947,0.41036,4384.6,4384.5,0.2314]
[1760017118245,0.41038,4384.4,4384.3,0.5974]
[1760017118835,0.41038,4384.4,4384.3,41.3974]
[1760017119050,0.41037,4384.5,4384.4,0.5974]
[1760017119545,0.7883,4385.1,4384.4,0.61315831]
[1760017119748,0.41037,4384.6,4384.4,0.01575831]
[1760017119948,3.2078,4385.2,4384.4,0.01575831]
[1760017120244,3.2078,4385.2,4385.0,0.8288]
[1760017120437,3.2078,4385.2,4385.1,0.5974]
[1760017120438,3.61811,4385.2,4385.1,0.5974]
[1760017120643,0.39456169,4385.0,4384.9,0.8314]
[1760017121146,0.41036,4384.6,4384.4,0.5974]
[1760017121342,0.5543,4384.9,4384.3,40.8]
[1760017121544,0.41038,4384.4,4384.3,40.8]
[1760017121747,0.41038,4384.4,4383.6,3.2078]
[1760017121748,0.5543,4383.9,4383.6,3.2078]
[1760017121947,0.7883,4383.9,4383.1,3.2078]
[1760017122146,0.7883,4383.9,4383.2,40.8]
[1760017122746,0.5543,4383.9,4383.2,40.8]
[1760017122937,3.8007,4384.5,4383.5,0.41046]
[1760017123141,0.41042,4384.0,4383.5,0.2376]
[1760017123342,0.41042,4384.0,4383.6,3.4418]
[1760017123548,0.41042,4384.0,4383.9,0.5958]
[1760017124746,0.99782,4384.0,4383.9,40.8]
[1760017125147,0.41042,4384.0,4383.7,0.0028592]
[1760017125343,3.2078,4384.5,4383.9,0.5483]
[1760017125644,0.41041,4384.1,4384.0,0.5483]
[1760017126853,0.5874,4384.2,4383.8,45.79213573]
[1760017127153,0.41041,4384.1,4384.0,0.01777808]
[1760017127748,0.41041,4384.1,4384.0,0.56607808]
[1760017127947,3.2078,4384.5,4384.1,0.5483]
[1760017128148,0.41038,4384.4,4384.3,0.5483]
[1760017128754,0.41035,4384.7,4384.6,0.5483]
[1760017128945,0.41036,4384.6,4384.5,0.2299]
[1760017129148,0.41036,4384.6,4384.5,0.79597808]
[1760017129349,0.41036,4384.6,4384.5,0.56607808]
[1760017129853,0.41035,4384.8,4384.5,0.56607808]
[1760017130153,0.99782,4383.9,4383.8,0.19500023]
[1760017130352,0.41049,4383.2,4383.0,0.2299]
[1760017130655,0.41049,4383.2,4383.1,0.5483]
[1760017130853,3.85229,4383.2,4383.1,0.5483]
[1760017131148,8.85229,4383.2,4383.0,0.2299]
[1760017131558,8.85229,4383.2,4383.0,0.23263648]
[1760017131748,3.2078,4383.7,4383.5,0.2299]
[1760017131945,3.2078,4383.7,4383.5,0.64036]
[1760017132355,3.2078,4384.5,4384.3,0.41038]
[1760017132659,2.71184847,4384.5,4384.4,0.234]
[1760017132857,2.71184847,4384.5,4384.3,0.41038]
[1760017133053,3.2078,4385.1,4385.0,0.7782]
[1760017133948,3.2078,4385.1,4385.0,41.5782]
[1760017136054,3.21018657,4385.6,4385.5,0.7782]
[1760017136659,0.00238657,4385.6,4385.5,0.7782]
[1760017138555,3.2078,4386.7,4386.6,0.5483]
[1760017139259,0.234,4386.8,4386.6,0.95847]
[1760017139461,3.2078,4387.3,4387.2,0.5483]
[1760017139659,0.00163042,4387.3,4387.2,0.5483]
[1760017139961,0.41174042,4387.3,4387.2,41.3483]
[1760017140963,0.1823,4387.9,4387.8,0.41006]
[1760017141155,0.1823,4387.9,4387.8,0.5483]
[1760017141359,0.59235,4387.9,4387.8,0.5483]
[1760017141561,0.59235,4387.9,4387.8,41.3483]
[1760017142062,0.59414855,4387.9,4387.8,41.3483]
[1760017142759,0.18409855,4387.9,4387.8,41.3483]
[1760017142959,0.00179855,4387.9,4387.8,41.3483]
[1760017143162,0.00179855,4387.9,4387.8,41.75836]
[1760017143457,0.00179855,4387.9,4387.8,41.3483]
[1760017145264,0.00179855,4387.9,4387.8,0.5483]
[1760017145465,5.00179855,4387.9,4387.8,1e-05]
[1760017146063,0.00179855,4387.9,4387.8,1e-05]
[1760017147172,0.00179855,4387.9,4387.5,0.2299]
[1760017147173,5.00179855,4387.9,4387.5,0.2299]
[1760017147368,3.2078,4387.6,4387.5,0.2299]
[1760017147567,1.02534,4387.1,4386.6,0.00283583]
[1760017147869,1.02534,4387.1,4386.5,0.2299]
[1760017147870,3.61796,4386.7,4386.5,5.83e-06]
[1760017148062,0.41022,4386.1,4385.8,3.2078]
[1760017148261,0.41026,4385.6,4385.5,0.2299]
[1760017148769,0.64326,4385.6,4385.5,0.23272895]
[1760017149264,0.64326,4385.6,4385.5,41.58102895]
[1760017149567,0.41026,4385.6,4385.5,0.78102895]
[1760017149758,3.2078,4385.8,4385.5,0.78102895]
[1760017149759,0.41025,4385.8,4385.6,0.5483]
[1760017149967,0.41026,4385.6,4385.5,0.78102895]
[1760017150358,4.23319,4386.8,4386.0,0.2299]
[1760017150564,0.41022,4386.1,4386.0,0.7782]
[1760017150868,0.64322,4386.1,4386.0,0.7782]
[1760017151266,0.41026,4385.6,4385.5,0.00282895]
[1760017151570,0.64326,4385.6,4385.5,0.23272895]
[1760017152268,0.64326,4385.6,4385.5,8.95e-06]
[1760017153661,0.64326,4385.6,4384.3,3.2078]
[1760017153662,0.41038,4384.4,4384.3,3.2078]
[1760017153867,0.64338,4384.4,4384.3,44.0078]
[1760017154169,0.64338,4384.4,4384.3,44.6029]
[1760017154563,0.64338,4384.4,4384.3,44.60486222]
[1760017154770,0.64547587,4384.4,4384.3,44.60486222]
[1760017154976,3.85327587,4384.4,4384.3,40.80196222]
[1760017155573,0.23509587,4384.4,4384.3,41.39706222]
[1760017155871,3.44289587,4384.4,4384.3,0.00196222]
[1760017159380,3.20989587,4384.4,4384.3,0.59706222]
[1760017159678,3.44289587,4384.4,4384.3,0.59706222]
[1760017161077,3.44289587,4384.4,4384.3,0.00196222]
[1760017161685,0.4105,4383.1,4383.0,3.457]
[1760017161890,0.41055,4382.6,4382.5,0.8443]
[1760017162278,3.2078,4384.2,4382.5,41.0492]
[1760017162484,0.4104,4384.2,4384.1,0.5951]
[1760017163079,0.4104,4384.2,4384.1,41.3951]
[1760017163390,0.4104,4384.2,4384.1,41.39794876]
[1760017164185,0.00209587,4384.4,4384.2,0.5951]
[1760017164491,0.00209587,4384.4,4384.3,0.5951]
[1760017165185,3.2078,4385.5,4384.8,0.5951]
[1760017165384,0.41028,4385.4,4385.1,0.5951]
[1760017165687,0.4103,4385.3,4385.2,0.5951]
[1760017165883,0.64326,4385.7,4385.5,0.2492]
[1760017166087,0.64326,4385.7,4385.6,0.5951]
[1760017166286,0.64556648,4385.7,4385.6,41.3951]
[1760017167189,0.41256648,4385.7,4385.6,41.3951]
[1760017167585,0.00230648,4385.7,4385.6,41.3951]
[1760017169784,0.00230648,4385.7,4384.0,0.2492]
[1760017169785,0.32920648,4385.7,4384.3,3.2078]
[1760017169986,0.32920648,4385.7,4384.0,0.2492]
[1760017169987,3.2078,4384.6,4384.0,0.2492]
[1760017170185,0.4104,4384.2,4384.0,0.2492]
[1760017170494,0.41036,4384.6,4384.5,0.2492]
[1760017170788,0.41036,4384.6,4384.5,41.0492]
[1760017170985,0.41035,4384.7,4384.5,41.0492]
[1760017171190,3.61815,4384.7,4384.5,41.0492]
[1760017171385,4.21495,4384.7,4384.5,40.8]
[1760017171587,0.8298,4384.6,4384.5,40.8]
[1760017171786,0.4104,4384.2,4384.1,0.59794876]
[1760017171992,3.6182,4384.2,4384.1,0.59794876]
[1760017172296,3.6182,4384.2,4384.1,41.39794876]
[1760017172694,3.6182,4384.2,4384.1,41.41076053]
[1760017172993,3.6182,4384.2,4384.1,41.42914527]
[1760017173794,3.8512,4384.2,4384.1,41.42914527]
[1760017173986,0.41039,4384.3,4384.2,0.5951]
[1760017174689,3.61819,4384.3,4384.1,40.83404527]
[1760017174884,3.61819,4384.3,4384.2,0.62629651]
[1760017175084,3.2078,4385.4,4384.2,0.62629651]
[1760017175290,0.41256648,4385.7,4385.6,0.5951]
[1760017175491,0.00230648,4385.7,4385.6,1.00536]
[1760017175688,0.00230648,4385.7,4385.6,41.80536]
[1760017175894,0.00230648,4385.7,4385.6,42.06955651]
[1760017176085,0.00230648,4385.7,4385.6,41.65929651]
[1760017178287,0.00230648,4385.7,4385.6,46.65929651]
[1760017178493,0.1823,4386.1,4386.0,1.25453]
[1760017178687,1.02532,4387.1,4386.0,1.25453]
[1760017178688,0.41021,4386.2,4386.1,0.5951]
[1760017178891,0.41017,4386.6,4386.3,0.41019]
[1760017179088,3.2078,4386.9,4386.6,0.41017]
[1760017179291,3.61795,4386.9,4386.8,0.5951]
[1760017179504,3.62033673,4386.9,4386.8,0.5951]
[1760017179696,3.62033673,4386.9,4386.8,41.3951]
[1760017180198,3.62033673,4386.9,4386.8,41.42629651]
[1760017181293,3.62033673,4386.9,4386.8,40.83119651]
[1760017181294,4.21713673,4386.9,4386.8,40.83119651]
[1760017181494,0.00238673,4386.9,4386.8,41.42629651]
[1760017181902,0.00238673,4386.9,4386.8,41.83644651]
[1760017182103,0.00238673,4386.9,4386.8,46.83644651]
[1760017182395,0.00238673,4386.9,4386.8,41.83644651]
[1760017182994,0.00238673,4386.9,4386.8,41.42629651]
[1760017183701,3.2078,4387.5,4386.8,46.42629651]
[1760017184001,0.1823,4387.7,4387.6,0.6551]
[1760017184204,0.1823,4387.7,4387.6,0.8881]
[1760017184599,0.41005,4387.9,4387.8,0.6808]
[1760017184799,0.41176176,4387.9,4387.8,0.68318556]
[1760017185102,0.41176176,4387.9,4387.8,0.94738207]
[1760017185307,0.41176176,4387.9,4387.8,41.74738207]
[1760017187598,0.00171176,4387.9,4387.8,41.74738207]
[1760017188309,3.2078,4388.6,4388.5,0.2552]
[1760017188604,0.40992,4389.3,4389.1,0.6808]
[1760017189002,0.40992,4389.3,4389.2,41.4808]
[1760017189300,0.40988,4389.8,4389.7,0.6808]
[1760017189501,0.0020258,4389.8,4389.7,0.6808]
[1760017189701,0.0020258,4389.8,4389.7,1.32268]
[1760017190297,0.0020258,4389.8,4389.7,0.71199651]
[1760017190597,0.0020258,4389.8,4389.7,0.03119651]
[1760017190796,0.0020258,4389.8,4389.7,0.71199651]
[1760017190996,8.8916258,4389.8,4389.7,0.03119651]
[1760017191498,1.02484,4389.2,4388.1,0.6808]
[1760017191709,0.41002,4388.2,4388.1,0.6808]
[1760017191896,0.41002,4388.2,4388.0,3.2078]
[1760017192100,0.41002,4388.2,4388.1,0.6808]
[1760017192700,0.41002,4388.3,4388.1,0.6808]
[1760017192899,0.41002,4388.3,4388.0,44.67304]
[1760017192900,0.41003,4388.1,4388.0,44.6886]
[1760017193105,0.41003,4388.1,4388.0,41.4808]
[1760017193508,1.09183,4388.1,4388.0,40.8]
[1760017193907,0.41003,4388.1,4388.0,41.4808]
[1760017194199,0.41003,4388.1,4388.0,40.8]
[1760017194400,0.41003,4388.1,4388.0,41.4808]
[1760017194799,3.2078,4389.1,4388.1,0.41002]
[1760017195006,0.40999,4388.6,4388.5,0.2552]
[1760017195209,3.2078,4389.1,4388.5,0.27267821]
[1760017195404,3.2078,4389.1,4388.6,0.40998]
[1760017195606,3.2078,4389.1,4388.6,0.6808]
[1760017195805,0.40995,4389.0,4388.9,0.6808]
[1760017196002,3.2078,4389.1,4388.9,0.6808]
[1760017196202,3.61774,4389.1,4389.0,0.936]
[1760017196408,3.2078,4389.1,4389.0,0.936]
[1760017196708,0.4099,4389.6,4389.0,0.4872]
[1760017196905,0.4099,4389.6,4389.5,0.936]
[1760017197906,0.37876762,4389.2,4389.1,0.6808]
[1760017198207,3.4418258,4389.8,4389.2,0.6808]
[1760017198415,0.0020258,4389.8,4389.7,1.09068]
[1760017199211,0.0020258,4389.8,4389.7,41.89068]
[1760017199408,8.4418258,4389.8,4387.5,0.2552]
[1760017199611,3.2078,4388.4,4387.5,0.0541766]
[1760017199915,0.41007,4387.7,4387.6,40.8]
[1760017200109,3.2078,4387.8,4387.0,0.2552]
[1760017200305,0.41012,4387.2,4387.0,0.2552]
[1760017200513,0.41013,4387.0,4386.9,3.2078]
[1760017200811,0.64313,4387.0,4386.9,0.0018388]
[1760017201010,1.30013,4387.0,4386.9,0.0018388]
[1760017201203,1.30013,4387.0,4385.0,0.2552]
[1760017201204,0.41031,4385.1,4385.0,3.463]
[1760017201509,0.41026,4385.6,4385.1,0.6808]
[1760017201812,0.233,4385.8,4385.2,0.6808]
[1760017202013,3.2078,4386.3,4385.5,0.2552]
[1760017202208,0.41026,4385.7,4385.5,0.2552]
[1760017202403,0.41026,4385.7,4385.6,0.6808]
[1760017203111,0.41029,4385.3,4385.2,0.00211857]
[1760017203317,0.41029,4385.3,4385.2,0.68291857]
[1760017203614,3.61809,4385.3,4385.2,0.00211857]
[1760017203802,3.2078,4385.3,4385.2,0.68291857]
[1760017204004,0.41027,4385.6,4385.3,0.6808]
[1760017204214,0.233,4385.7,4385.3,0.6808]
[1760017204511,3.21056752,4385.8,4385.3,1.09109]
[1760017204812,0.00276752,4385.8,4385.6,0.6808]
[1760017205209,0.00276752,4385.8,4385.5,0.66547]
[1760017205412,0.00276752,4385.8,4385.6,0.6808]
[1760017205613,0.00276752,4385.8,4385.2,40.80211857]
[1760017205614,0.41029,4385.3,4385.2,40.80211857]
[1760017206010,0.41029,4385.4,4385.3,0.6808]
[1760017206215,0.00276752,4385.8,4385.5,0.2552]
[1760017206412,0.00276752,4385.8,4385.6,0.6808]
[1760017206918,0.41026,4385.7,4385.5,0.2552]
[1760017207106,0.41026,4385.7,4385.6,0.6808]
[1760017207313,0.00276752,4385.8,4385.7,0.6808]
[1760017207707,0.00276752,4385.8,4385.7,0.7116476]
[1760017208114,0.00276752,4385.8,4385.7,0.7173779]
[1760017208810,0.65976752,4385.8,4385.7,0.0365779]
[1760017209016,0.00276752,4385.8,4385.7,0.0365779]
[1760017209211,0.00276752,4385.8,4385.7,0.7173779]
[1760017210414,3.3901,4386.5,4386.4,1.09099]
[1760017210815,3.3901,4386.5,4386.4,41.89099]
[1760017211317,3.3901,4386.5,4386.4,41.5173779]
[1760017211519,3.80279031,4386.5,4386.4,41.5173779]
[1760017211920,9.45979031,4386.5,4386.4,0.0365779]
[1760017212225,9.45979031,4386.5,4385.5,0.6808]
[1760017212226,0.41026,4385.6,4385.5,0.6808]
[1760017212419,0.41026,4385.6,4385.5,41.4808]
[1760017212719,0.233,4386.1,4385.6,0.7088]
[1760017212919,0.41022,4386.1,4385.7,0.7088]
[1760017213223,3.39261031,4386.5,4385.5,41.7729]
[1760017213424,3.39261031,4386.5,4385.5,41.47437]
[1760017213722,0.41022,4386.1,4385.7,0.7088]
[1760017213920,0.233,4386.1,4385.7,0.41025]
[1760017214118,0.233,4386.1,4386.0,0.7088]
[1760017214323,0.233,4386.1,4386.0,0.9729]
[1760017214523,0.233,4386.1,4386.0,0.99770274]
[1760017214918,0.233,4386.1,4386.0,1.00409708]
[1760017215119,3.39261031,4386.5,4386.4,0.7088]
[1760017215523,3.21031031,4386.5,4386.4,0.7088]
[1760017215825,0.41021,4386.2,4386.1,0.7088]
[1760017216024,0.4102,4386.3,4386.2,0.41021]
[1760017216229,0.4102,4386.3,4386.2,41.5088]
[1760017216423,1.02558,4386.0,4384.8,3.9166]
[1760017216725,0.41029,4385.3,4384.8,3.9166]
[1760017216927,0.41029,4385.3,4385.2,40.80211857]
[1760017216928,0.64329,4385.3,4385.2,40.80211857]
[1760017217126,1.31129,4385.3,4385.2,40.80211857]
[1760017217322,0.64329,4385.3,4385.2,40.80211857]
[1760017217524,1.02583,4385.0,4384.3,3.2078]
[1760017217837,0.233,4384.9,4384.3,3.2078]
[1760017218035,0.41036,4384.6,4384.5,0.7088]
[1760017218331,0.233,4384.9,4384.0,0.90751]
[1760017218332,0.41041,4384.1,4384.0,0.9729]
[1760017218528,0.233,4384.5,4384.0,0.67735922]
[1760017218728,3.2078,4385.0,4384.3,0.7088]
[1760017219032,0.59275,4384.7,4384.5,0.2641]
[1760017219231,0.1824,4384.7,4384.6,0.7088]
[1760017219725,0.1824,4384.7,4384.1,0.7088]
[1760017220127,0.233,4384.6,4384.0,0.26694922]
[1760017220333,0.4104,4384.2,4384.1,0.7088]
[1760017220722,0.4104,4384.2,4384.1,0.72062764]
[1760017220923,0.4104,4384.2,4384.1,0.01182764]
[1760017220924,1.3114,4384.2,4384.1,0.01182764]
[1760017221124,1.3114,4384.2,4384.0,0.00284922]
[1760017221328,0.6434,4384.2,4384.1,0.02365528]
[1760017221529,0.6434,4384.2,4384.0,0.00284922]
[1760017221733,0.6434,4384.2,4384.1,0.03119708]
[1760017222633,0.6434,4384.2,4384.1,0.73999708]
[1760017223226,3.61819,4384.3,4384.2,0.7088]
[1760017223432,3.85119,4384.3,4384.2,0.7088]
[1760017223627,0.37921292,4384.1,4384.0,0.00284922]
[1760017223833,0.37921292,4384.1,4384.0,40.80284922]
[1760017224028,0.4104,4384.2,4384.0,40.80284922]
[1760017224229,0.4104,4384.2,4384.1,0.7088]
[1760017224430,0.4104,4384.2,4384.0,40.80284922]
[1760017224633,0.4104,4384.2,4384.1,0.7088]
[1760017224833,0.4104,4384.2,4384.0,40.80284922]
[1760017225734,0.4104,4384.2,4384.0,41.51164922]
[1760017226240,3.67450292,4384.1,4382.9,0.7088]
[1760017226435,0.41051,4383.0,4382.8,3.2078]
[1760017226633,0.41051,4383.0,4382.8,3.9166]
[1760017226833,0.41051,4383.0,4382.9,40.8]
[1760017227133,1.02635,4382.7,4382.2,0.089]
[1760017227326,3.8758,4382.3,4382.2,0.0918973]
[1760017227635,3.8758,4382.3,4382.2,0.10270306]
[1760017227839,4.1088,4382.3,4382.2,0.10270306]
[1760017228039,4.1088,4382.3,4382.2,0.10768243]
[1760017228734,3.8758,4382.3,4382.2,0.10768243]
[1760017229040,0.41056,4382.4,4382.3,0.7088]
[1760017229238,3.61836,4382.4,4382.3,0.7088]
[1760017229433,0.668,4382.3,4382.2,0.10768243]
[1760017230439,3.85136,4382.4,4382.2,0.10768243]
[1760017230631,0.233,4382.3,4382.2,0.10768243]
[1760017230829,3.61836,4382.4,4382.3,0.7088]
[1760017231136,3.61836,4382.4,4382.3,0.72458513]
[1760017231137,0.233,4382.4,4382.3,0.72458513]
[1760017232035,0.41056,4382.5,4382.4,0.7088]
[1760017232341,0.64356,4382.5,4382.4,0.7088]
[1760017232533,0.233,4382.5,4382.4,0.7088]
[1760017232735,0.41055,4382.6,4382.3,0.42634513]
[1760017232736,0.41294936,4382.7,4382.6,0.7088]
[1760017232938,0.41294936,4382.7,4382.3,0.01578513]
[1760017232939,0.41055,4382.6,4382.4,0.7088]
[1760017233139,0.41055,4382.6,4382.5,0.72458513]
[1760017233740,0.64594936,4382.7,4382.6,0.7088]
[1760017233936,0.23540936,4382.7,4382.6,0.7088]
[1760017234136,0.23540936,4382.7,4382.6,0.72458513]
[1760017235131,0.00240936,4382.7,4382.6,0.72458513]
[1760017235741,0.67040936,4382.7,4382.6,40.81578513]
[1760017235937,0.00240936,4382.7,4382.6,40.81578513]
[1760017236133,0.00240936,4382.7,4382.6,41.52458513]
[1760017236333,0.00240936,4382.7,4382.6,40.81578513]
[1760017236741,0.00240936,4382.7,4382.6,41.52458513]
[1760017237131,0.00240936,4382.7,4382.6,0.01578513]
[1760017237334,0.67040936,4382.7,4382.6,0.01578513]
[1760017237540,5.67040936,4382.7,4382.6,0.01578513]
[1760017237930,0.67040936,4382.7,4382.6,0.01578513]
[1760017238137,5.67040936,4382.7,4382.6,0.01578513]
[1760017238440,1.07857,4382.3,4382.2,0.0918973]
[1760017238639,4.51937,4382.3,4382.2,0.0918973]
[1760017238840,3.85137,4382.3,4382.2,0.0918973]
[1760017239044,3.85137,4382.3,4382.2,0.8006973]
[1760017239244,3.61837,4382.3,4382.2,0.8006973]
[1760017239545,0.00240936,4382.7,4382.2,0.8006973]
[1760017239546,0.00240936,4382.7,4382.6,1.11935]
[1760017239738,0.00240936,4382.7,4382.6,0.7088]
[1760017240345,0.00240936,4382.7,4382.6,5.7088]
[1760017240745,0.00240936,4382.7,4382.6,46.5088]
[1760017241741,3.2078,4383.5,4383.4,0.7088]
[1760017242644,3.21002804,4383.5,4383.4,0.7088]
[1760017242849,0.41054,4382.8,4382.6,3.2078]
[1760017243042,4.23415,4382.7,4382.3,0.6921]
[1760017243243,1.04976,4382.4,4381.6,3.8999]
[1760017243443,0.233,4382.3,4381.7,40.8]
[1760017244348,0.8769,4382.3,4381.7,40.8]
[1760017244842,0.233,4382.3,4382.2,0.7246973]
[1760017245145,0.41056,4382.4,4382.3,0.6328]
[1760017245351,0.6439,4382.3,4382.2,0.0918973]
[1760017246241,0.6439,4382.3,4381.6,40.8]
[1760017246242,0.6439,4381.9,4381.6,40.8]
[1760017246442,3.61843,4381.7,4381.6,0.6328]
[1760017247139,3.2078,4381.7,4381.6,0.63558123]
[1760017247738,3.4408,4381.7,4381.6,0.63558123]
[1760017248445,3.97100893,4381.7,4381.6,0.63558123]
[1760017248647,3.4408,4381.7,4381.6,0.63558123]
[1760017249250,0.41068,4381.2,4381.1,41.4328]
[1760017249552,0.41068,4381.2,4380.0,3.4841]
[1760017249553,0.6814,4380.1,4380.0,2.97562369]
[1760017249744,0.41085,4379.4,4379.3,3.2078]
[1760017250051,0.233,4379.8,4379.3,44.0078]
[1760017250352,0.23561945,4379.8,4379.3,44.01022153]
[1760017250546,0.23561945,4379.8,4379.4,0.41084]
[1760017250755,0.23561945,4379.8,4379.3,44.01022153]
[1760017251049,0.41084,4379.5,4379.3,44.01022153]
[1760017251240,0.23561945,4379.8,4379.3,44.42107153]
[1760017251444,0.41083,4379.6,4379.3,44.42107153]
[1760017251652,0.23561945,4379.8,4379.4,0.6328]
[1760017251841,0.23561945,4379.8,4379.3,44.01022153]
[1760017251842,0.00261945,4379.8,4379.7,0.6328]
[1760017252446,3.8892,4381.4,4379.7,5.233]
[1760017252748,0.233,4381.9,4381.3,0.6328]
[1760017252944,0.41064,4381.7,4381.5,0.6328]
[1760017253250,0.41062,4381.8,4381.6,0.6328]
[1760017253449,0.41250733,4381.8,4381.6,0.6328]
[1760017253749,0.00188733,4381.8,4381.7,0.6328]
[1760017253953,1.02615,4383.6,4381.7,0.6328]
[1760017253954,3.2078,4382.7,4382.5,0.6328]
[1760017254155,3.2078,4382.7,4382.1,0.6328]
[1760017254454,3.2078,4383.3,4383.2,0.6328]
[1760017254854,3.20984354,4383.3,4382.8,0.41052]
[1760017255054,0.4105,4383.1,4382.9,0.6328]
[1760017255357,0.41051,4383.0,4382.9,0.6328]
[1760017255547,0.41049,4383.2,4382.9,0.6328]
[1760017255857,0.4105,4383.1,4383.0,0.6328]
[1760017256954,3.89124354,4383.3,4382.8,0.00274707]
[1760017257256,3.89124354,4383.3,4382.9,0.6328]
[1760017257452,3.20984354,4383.3,4383.0,0.4105]
[1760017257757,3.20984354,4383.3,4382.8,0.41327707]
[1760017257956,3.20984354,4383.3,4383.0,1.0433]
[1760017258162,3.20984354,4383.3,4383.2,0.6328]
[1760017258857,3.20984354,4383.3,4383.2,41.4328]
[1760017259250,3.20984354,4383.3,4383.2,41.84329]
[1760017259648,3.20984354,4383.3,4383.2,41.4328]
[1760017260255,3.20984354,4383.3,4383.2,40.8]
[1760017260256,4.12424354,4383.3,4383.2,40.8]
[1760017260450,0.41052,4382.9,4382.8,0.00274707]
[1760017260650,1.09192,4382.9,4382.8,0.00274707]
[1760017261262,3.20984354,4383.3,4382.9,0.6328]